[Event "Early-Titled-Tuesday-Blitz-March-26-2024"]
[Site "Chess.com"]
[Date "2024.03.26"]
[Round "7"]
[White "FlemingA"]
[Black "MatyChess1"]
[Result "0-1"]
[WhiteElo "2437"]
[BlackElo "2636"]
[TimeControl "180+1"]
[EndTime "9:16:04 PDT"]
[Termination "MatyChess1 won by resignation"]

1. e4 {[%clk 0:02:53.8]} 1... e5 {[%clk 0:02:58.8]} 2. Nf3 {[%clk 0:02:48.2]}
2... Nc6 {[%clk 0:02:59.4]} 3. c3 {[%clk 0:02:46.8]} 3... Nf6 {[%clk 0:02:58.5]}
4. d4 {[%clk 0:02:44.6]} 4... d6 {[%clk 0:02:59.1]} 5. Bd3 {[%clk 0:02:35.8]}
5... g6 {[%clk 0:02:56.1]} 6. O-O {[%clk 0:02:35.2]} 6... Bg7 {[%clk 0:02:56.8]}
7. a4 {[%clk 0:02:32.1]} 7... O-O {[%clk 0:02:56.8]} 8. a5 {[%clk 0:02:32.2]}
8... a6 {[%clk 0:02:53.7]} 9. Nbd2 {[%clk 0:02:32]} 9... Re8 {[%clk 0:02:53.2]}
10. Re1 {[%clk 0:02:30.8]} 10... h6 {[%clk 0:02:48.4]} 11. d5 {[%clk 0:02:29.6]}
11... Ne7 {[%clk 0:02:46.3]} 12. b4 {[%clk 0:02:30.3]} 12... Nh7 {[%clk
0:02:41.5]} 13. c4 {[%clk 0:02:30]} 13... f5 {[%clk 0:02:41.4]} 14. c5 {[%clk
0:02:29.6]} 14... Nf6 {[%clk 0:02:31.1]} 15. cxd6 {[%clk 0:02:25.5]} 15... cxd6
{[%clk 0:02:31.1]} 16. Qb3 {[%clk 0:02:22.7]} 16... Kh8 {[%clk 0:02:27.2]} 17.
Ba3 {[%clk 0:02:17.1]} 17... Bd7 {[%clk 0:02:24.5]} 18. Rac1 {[%clk 0:02:16.1]}
18... Rf8 {[%clk 0:02:02.7]} 19. Bb1 {[%clk 0:01:50.5]} 19... Bb5 {[%clk
0:01:58.4]} 20. Bb2 {[%clk 0:01:38.8]} 20... Rc8 {[%clk 0:01:49.7]} 21. Rxc8
{[%clk 0:01:36.8]} 21... Qxc8 {[%clk 0:01:50.6]} 22. Nh4 {[%clk 0:01:08.2]}
22... Qd7 {[%clk 0:01:40.6]} 23. Qg3 {[%clk 0:01:03.9]} 23... g5 {[%clk
0:01:07.9]} 24. Nxf5 {[%clk 0:01:01.5]} 24... Nxf5 {[%clk 0:01:05.5]} 25. exf5
{[%clk 0:01:02.2]} 25... Nxd5 {[%clk 0:01:05.7]} 26. Ne4 {[%clk 0:00:39.3]}
26... Nf4 {[%clk 0:01:04.2]} 27. Qg4 {[%clk 0:00:35.3]} 27... Bc6 {[%clk
0:00:49.7]} 28. Rd1 {[%clk 0:00:24.4]} 28... d5 {[%clk 0:00:34.9]} 29. g3 {[%clk
0:00:22.8]} 29... h5 {[%clk 0:00:30.9]} 30. Nc5 {[%clk 0:00:14.2]} 30... hxg4
{[%clk 0:00:15.6]} 31. Nxd7 {[%clk 0:00:13.9]} 31... Nh3+ {[%clk 0:00:16.5]} 32.
Kf1 {[%clk 0:00:12.4]} 32... Bxd7 {[%clk 0:00:17.4]} 33. Rxd5 {[%clk 0:00:09.3]}
33... Bxf5 {[%clk 0:00:17.4]} 34. Bxf5 {[%clk 0:00:02.8]} 34... Rxf5 {[%clk
0:00:18.3]} 35. Rd2 {[%clk 0:00:03.3]} 35... e4 {[%clk 0:00:18.1]} 36. Bxg7+
{[%clk 0:00:04.2]} 36... Kxg7 {[%clk 0:00:18.1]} 37. Re2 {[%clk 0:00:05.1]}
37... e3 {[%clk 0:00:17.3]} 38. Rxe3 {[%clk 0:00:05.4]} 38... Rxf2+ {[%clk
0:00:18]} 39. Ke1 {[%clk 0:00:05.9]} 39... Rf7 {[%clk 0:00:15.2]} 40. Re5 {[%clk
0:00:05.3]} 40... Kg6 {[%clk 0:00:15.4]} 41. Rd5 {[%clk 0:00:05.2]} 41... Rc7
{[%clk 0:00:14.6]} 42. Rd6+ {[%clk 0:00:05.8]} 42... Kh5 {[%clk 0:00:14.2]} 43.
Rb6 {[%clk 0:00:06.7]} 43... Ng1 {[%clk 0:00:13.1]} 44. Kf2 {[%clk 0:00:05.9]}
44... Nf3 {[%clk 0:00:13.3]} 45. h3 {[%clk 0:00:06.6]} 45... Ne5 {[%clk
0:00:11.9]} 46. Re6 {[%clk 0:00:04.4]} 46... Nd3+ {[%clk 0:00:11.4]} 47. Ke3
{[%clk 0:00:05.1]} 47... Nxb4 {[%clk 0:00:11.3]} 48. hxg4+ {[%clk 0:00:06]}
48... Kxg4 {[%clk 0:00:11.4]} 49. Re4+ {[%clk 0:00:06.6]} 49... Kxg3 {[%clk
0:00:11.7]} 50. Rxb4 {[%clk 0:00:07.5]} 50... g4 {[%clk 0:00:11.2]} 51. Rb6
{[%clk 0:00:07.7]} 51... Re7+ {[%clk 0:00:11.3]} 52. Kd4 {[%clk 0:00:06.8]}
52... Kf2 {[%clk 0:00:11.1]} 53. Rf6+ {[%clk 0:00:07.2]} 53... Kg2 {[%clk
0:00:11.5]} 54. Rg6 {[%clk 0:00:07.5]} 54... g3 {[%clk 0:00:12]} 55. Kd3 {[%clk
0:00:07.5]} 55... Kf2 {[%clk 0:00:11.8]} 56. Rf6+ {[%clk 0:00:08.2]} 56... Kg1
{[%clk 0:00:12.3]} 57. Rf7 {[%clk 0:00:09]} 57... Rxf7 {[%clk 0:00:06.9]} 0-1

[Event "Early-Titled-Tuesday-Blitz-March-26-2024"]
[Site "Chess.com"]
[Date "2024.03.26"]
[Round "7"]
[White "Better_Chess_Faster"]
[Black "ChempionBg"]
[Result "1-0"]
[WhiteElo "2190"]
[BlackElo "2335"]
[TimeControl "180+1"]
[EndTime "9:16:05 PDT"]
[Termination "Better_Chess_Faster won on time"]

1. d4 {[%clk 0:03:00.9]} 1... Nf6 {[%clk 0:02:58.4]} 2. Bg5 {[%clk 0:03:00.7]}
2... d5 {[%clk 0:02:57.3]} 3. e3 {[%clk 0:02:59.4]} 3... Bf5 {[%clk 0:02:56.9]}
4. Bxf6 {[%clk 0:02:58.6]} 4... exf6 {[%clk 0:02:56.6]} 5. c4 {[%clk 0:02:57.5]}
5... c6 {[%clk 0:02:55.9]} 6. Nc3 {[%clk 0:02:56.9]} 6... Be7 {[%clk 0:02:54.4]}
7. Nf3 {[%clk 0:02:55]} 7... O-O {[%clk 0:02:53.7]} 8. g3 {[%clk 0:02:53.3]}
8... dxc4 {[%clk 0:02:49.1]} 9. Bxc4 {[%clk 0:02:52.3]} 9... Nd7 {[%clk
0:02:49.7]} 10. O-O {[%clk 0:02:51.6]} 10... Nb6 {[%clk 0:02:50.2]} 11. Bd3
{[%clk 0:02:49]} 11... Bxd3 {[%clk 0:02:43.7]} 12. Qxd3 {[%clk 0:02:49.9]} 12...
Qd7 {[%clk 0:02:43.1]} 13. Kg2 {[%clk 0:02:48.9]} 13... Rfe8 {[%clk 0:02:38.5]}
14. Rac1 {[%clk 0:02:45]} 14... Bf8 {[%clk 0:02:37.3]} 15. b3 {[%clk 0:02:43.5]}
15... f5 {[%clk 0:02:31.7]} 16. Rfd1 {[%clk 0:02:37.8]} 16... Rad8 {[%clk
0:02:30.3]} 17. Qc2 {[%clk 0:02:27.9]} 17... Nd5 {[%clk 0:02:28.4]} 18. Nxd5
{[%clk 0:02:19.7]} 18... Qxd5 {[%clk 0:02:27]} 19. Qc4 {[%clk 0:02:18.6]} 19...
Qe4 {[%clk 0:02:15.9]} 20. Qc2 {[%clk 0:02:16.8]} 20... Ba3 {[%clk 0:02:11.6]}
21. Qxe4 {[%clk 0:01:46]} 21... fxe4 {[%clk 0:02:09.3]} 22. Ne5 {[%clk
0:01:45.3]} 22... Bxc1 {[%clk 0:02:03.7]} 23. Rxc1 {[%clk 0:01:46.2]} 23... f6
{[%clk 0:01:58.3]} 24. Nc4 {[%clk 0:01:44.7]} 24... Rd5 {[%clk 0:01:56.2]} 25.
a4 {[%clk 0:01:39.8]} 25... b5 {[%clk 0:01:47.5]} 26. Nd2 {[%clk 0:01:29.5]}
26... bxa4 {[%clk 0:01:28.7]} 27. bxa4 {[%clk 0:01:29.4]} 27... Ra5 {[%clk
0:01:28.6]} 28. Rc4 {[%clk 0:01:29.5]} 28... f5 {[%clk 0:01:28.6]} 29. Nb3
{[%clk 0:01:24.8]} 29... Rd5 {[%clk 0:00:45.9]} 30. Rxc6 {[%clk 0:01:19.9]}
30... Rb8 {[%clk 0:00:41.6]} 31. Nc5 {[%clk 0:01:18]} 31... Rdd8 {[%clk
0:00:28]} 32. Rc7 {[%clk 0:01:16.2]} 32... a5 {[%clk 0:00:13.6]} 33. Ne6 {[%clk
0:01:04.3]} 33... Re8 {[%clk 0:00:13.8]} 34. Nxg7 {[%clk 0:00:55]} 34... Rec8
{[%clk 0:00:13.4]} 35. Ra7 {[%clk 0:00:48]} 35... Rc4 {[%clk 0:00:12.1]} 36.
Nxf5 {[%clk 0:00:43]} 36... Rxa4 {[%clk 0:00:12]} 37. Nd6 {[%clk 0:00:40.3]}
37... Ra2 {[%clk 0:00:11.1]} 38. Nxe4 {[%clk 0:00:38.2]} 38... a4 {[%clk
0:00:11.4]} 39. Nf6+ {[%clk 0:00:34.3]} 39... Kf8 {[%clk 0:00:11.6]} 40. Nxh7+
{[%clk 0:00:33.7]} 40... Ke8 {[%clk 0:00:10.5]} 41. Nf6+ {[%clk 0:00:33]} 41...
Kd8 {[%clk 0:00:10.8]} 42. h4 {[%clk 0:00:31.8]} 42... a3 {[%clk 0:00:09.8]} 43.
h5 {[%clk 0:00:31]} 43... Rbb2 {[%clk 0:00:08.5]} 44. Ne4 {[%clk 0:00:27.3]}
44... Rb5 {[%clk 0:00:05.7]} 45. h6 {[%clk 0:00:24.9]} 45... Rh5 {[%clk
0:00:05.6]} 46. h7 {[%clk 0:00:23.3]} 46... Ra1 {[%clk 0:00:06]} 47. h8=Q+
{[%clk 0:00:20.5]} 47... Rxh8 {[%clk 0:00:05]} 48. Ra8+ {[%clk 0:00:20.1]} 48...
Kd7 {[%clk 0:00:04.7]} 49. Rxh8 {[%clk 0:00:18.8]} 49... a2 {[%clk 0:00:04.9]}
50. Ra8 {[%clk 0:00:18.3]} 50... Kc7 {[%clk 0:00:05.1]} 51. Kf3 {[%clk
0:00:17.6]} 51... Kb7 {[%clk 0:00:05.2]} 52. g4 {[%clk 0:00:17.7]} 52... Kxa8
{[%clk 0:00:04.8]} 53. g5 {[%clk 0:00:18.2]} 53... Rh1 {[%clk 0:00:04]} 54. g6
{[%clk 0:00:16.1]} 54... a1=Q {[%clk 0:00:03.7]} 55. g7 {[%clk 0:00:15.4]} 55...
Qa2 {[%clk 0:00:03]} 56. Nf6 {[%clk 0:00:13.9]} 1-0

[Event "Early-Titled-Tuesday-Blitz-March-26-2024"]
[Site "Chess.com"]
[Date "2024.03.26"]
[Round "7"]
[White "SlavenPastar"]
[Black "JJDAREK"]
[Result "1/2-1/2"]
[WhiteElo "2580"]
[BlackElo "2392"]
[TimeControl "180+1"]
[EndTime "9:16:06 PDT"]
[Termination "Game drawn by stalemate"]

1. b3 {[%clk 0:03:00.9]} 1... d5 {[%clk 0:02:56.8]} 2. Bb2 {[%clk 0:03:01]} 2...
Nf6 {[%clk 0:02:54.4]} 3. Nf3 {[%clk 0:03:01.1]} 3... Bf5 {[%clk 0:02:52.2]} 4.
e3 {[%clk 0:03:01.6]} 4... h6 {[%clk 0:02:51.2]} 5. c4 {[%clk 0:03:01.4]} 5...
e6 {[%clk 0:02:50.5]} 6. Nc3 {[%clk 0:03:00.3]} 6... c6 {[%clk 0:02:50.6]} 7.
cxd5 {[%clk 0:02:55.1]} 7... exd5 {[%clk 0:02:46.8]} 8. d3 {[%clk 0:02:53]} 8...
Nbd7 {[%clk 0:02:42.9]} 9. Qc2 {[%clk 0:02:51.5]} 9... a5 {[%clk 0:02:39.2]} 10.
Be2 {[%clk 0:02:50.6]} 10... Bb4 {[%clk 0:02:22.5]} 11. a3 {[%clk 0:02:49.6]}
11... Be7 {[%clk 0:02:21.4]} 12. e4 {[%clk 0:02:48.9]} 12... dxe4 {[%clk
0:02:19.9]} 13. dxe4 {[%clk 0:02:48.9]} 13... Bh7 {[%clk 0:02:20.2]} 14. O-O
{[%clk 0:02:42.6]} 14... O-O {[%clk 0:02:19.8]} 15. Rfe1 {[%clk 0:02:37.3]}
15... Nc5 {[%clk 0:02:15.8]} 16. Bf1 {[%clk 0:02:27.8]} 16... Re8 {[%clk
0:02:07.3]} 17. b4 {[%clk 0:02:22]} 17... axb4 {[%clk 0:01:58.6]} 18. axb4
{[%clk 0:02:22.9]} 18... Rxa1 {[%clk 0:01:55.6]} 19. Bxa1 {[%clk 0:02:23.8]}
19... Ne6 {[%clk 0:01:31.2]} 20. Qb3 {[%clk 0:02:17]} 20... Bf8 {[%clk
0:01:17.3]} 21. b5 {[%clk 0:01:50.5]} 21... Nc5 {[%clk 0:01:12]} 22. Qc4 {[%clk
0:01:48.3]} 22... Ncxe4 {[%clk 0:00:59]} 23. bxc6 {[%clk 0:01:44]} 23... bxc6
{[%clk 0:00:57.4]} 24. Qxc6 {[%clk 0:01:34.8]} 24... Nxc3 {[%clk 0:00:51.3]} 25.
Rxe8 {[%clk 0:01:30.5]} 25... Nxe8 {[%clk 0:00:43.9]} 26. Qxc3 {[%clk 0:01:25]}
26... Be7 {[%clk 0:00:38.9]} 27. Qb3 {[%clk 0:00:57]} 27... Bf6 {[%clk
0:00:36.1]} 28. Be5 {[%clk 0:00:48]} 28... Qe7 {[%clk 0:00:27]} 29. Bg3 {[%clk
0:00:42.1]} 29... Be4 {[%clk 0:00:23.7]} 30. Nd2 {[%clk 0:00:38.1]} 30... Bg6
{[%clk 0:00:19.9]} 31. h3 {[%clk 0:00:37]} 31... Nd6 {[%clk 0:00:17.5]} 32. Qd5
{[%clk 0:00:31.7]} 32... Ne4 {[%clk 0:00:14.5]} 33. Nf3 {[%clk 0:00:20.6]} 33...
Nxg3 {[%clk 0:00:13.6]} 34. fxg3 {[%clk 0:00:21.5]} 34... Qe3+ {[%clk
0:00:12.5]} 35. Kh2 {[%clk 0:00:21.2]} 35... Qe7 {[%clk 0:00:13.4]} 36. Bc4
{[%clk 0:00:19.9]} 36... Be4 {[%clk 0:00:12.8]} 37. Qd1 {[%clk 0:00:19]} 37...
Bxf3 {[%clk 0:00:10.9]} 38. Qxf3 {[%clk 0:00:19.9]} 38... Be5 {[%clk 0:00:10.9]}
39. Bd5 {[%clk 0:00:19.9]} 39... Qc7 {[%clk 0:00:10.3]} 40. h4 {[%clk
0:00:19.7]} 40... g6 {[%clk 0:00:10.3]} 41. Kh3 {[%clk 0:00:19.1]} 41... Kg7
{[%clk 0:00:10.5]} 42. g4 {[%clk 0:00:19.6]} 42... g5 {[%clk 0:00:09.3]} 43.
hxg5 {[%clk 0:00:18.3]} 43... hxg5 {[%clk 0:00:10.2]} 44. Qf5 {[%clk 0:00:18.5]}
44... Bf4 {[%clk 0:00:09.9]} 45. g3 {[%clk 0:00:13.8]} 45... Bxg3 {[%clk
0:00:08.7]} 46. Qxg5+ {[%clk 0:00:12.9]} 46... Kf8 {[%clk 0:00:09.3]} 47. Qh6+
{[%clk 0:00:12.3]} 47... Kg8 {[%clk 0:00:09.5]} 48. Qg6+ {[%clk 0:00:10]} 48...
Kf8 {[%clk 0:00:09.9]} 49. Bxf7 {[%clk 0:00:08.7]} 49... Qxf7 {[%clk 0:00:08.8]}
50. Qxf7+ {[%clk 0:00:05.6]} 50... Kxf7 {[%clk 0:00:09.7]} 51. Kxg3 {[%clk
0:00:05.8]} 51... Kf6 {[%clk 0:00:09.9]} 52. Kf4 {[%clk 0:00:06.4]} 52... Kg6
{[%clk 0:00:10.4]} 53. g5 {[%clk 0:00:07.2]} 53... Kg7 {[%clk 0:00:10.7]} 54.
Kf5 {[%clk 0:00:08.1]} 54... Kf7 {[%clk 0:00:11.2]} 55. g6+ {[%clk 0:00:09]}
55... Kg7 {[%clk 0:00:11.6]} 56. Kg5 {[%clk 0:00:09.6]} 56... Kg8 {[%clk
0:00:12.1]} 57. Kf6 {[%clk 0:00:10.5]} 57... Kf8 {[%clk 0:00:12.5]} 58. g7+
{[%clk 0:00:11]} 58... Kg8 {[%clk 0:00:12.8]} 59. Kg6 {[%clk 0:00:11.9]} 1/2-1/2

[Event "Early-Titled-Tuesday-Blitz-March-26-2024"]
[Site "Chess.com"]
[Date "2024.03.26"]
[Round "7"]
[White "Goryachkina"]
[Black "Titus369"]
[Result "1-0"]
[WhiteElo "2678"]
[BlackElo "2626"]
[TimeControl "180+1"]
[EndTime "9:16:09 PDT"]
[Termination "Goryachkina won by resignation"]

1. e4 {[%clk 0:03:00]} 1... c5 {[%clk 0:02:58.6]} 2. Nf3 {[%clk 0:02:59.6]} 2...
d6 {[%clk 0:02:58.8]} 3. d4 {[%clk 0:02:59.2]} 3... cxd4 {[%clk 0:02:59.7]} 4.
Nxd4 {[%clk 0:02:59.6]} 4... Nf6 {[%clk 0:03:00.3]} 5. Nc3 {[%clk 0:02:59.7]}
5... a6 {[%clk 0:03:00.8]} 6. Be3 {[%clk 0:02:55.8]} 6... e6 {[%clk 0:02:59.4]}
7. Be2 {[%clk 0:02:50.5]} 7... Nbd7 {[%clk 0:02:56.5]} 8. g4 {[%clk 0:02:48]}
8... h6 {[%clk 0:02:45.4]} 9. Qd2 {[%clk 0:02:39.7]} 9... b5 {[%clk 0:02:38.7]}
10. a3 {[%clk 0:02:36.5]} 10... Qc7 {[%clk 0:02:30.9]} 11. O-O-O {[%clk
0:02:32.7]} 11... Bb7 {[%clk 0:02:18.6]} 12. f3 {[%clk 0:02:32]} 12... d5 {[%clk
0:01:55]} 13. h4 {[%clk 0:02:09.9]} 13... dxe4 {[%clk 0:01:49.7]} 14. g5 {[%clk
0:02:07.9]} 14... hxg5 {[%clk 0:01:49.4]} 15. hxg5 {[%clk 0:02:07.3]} 15... Rxh1
{[%clk 0:01:50]} 16. Rxh1 {[%clk 0:02:06.9]} 16... Nd5 {[%clk 0:01:24]} 17. Nxd5
{[%clk 0:01:41.1]} 17... Bxd5 {[%clk 0:01:21.3]} 18. g6 {[%clk 0:01:04.7]} 18...
fxg6 {[%clk 0:00:56.2]} 19. fxe4 {[%clk 0:00:49.4]} 19... Bxe4 {[%clk
0:00:57.1]} 20. Nxe6 {[%clk 0:00:40.6]} 20... Qc6 {[%clk 0:00:54.1]} 21. Nd4
{[%clk 0:00:33.2]} 21... Qd5 {[%clk 0:00:48.1]} 22. Rd1 {[%clk 0:00:26.4]} 22...
Rc8 {[%clk 0:00:44.1]} 23. Bd3 {[%clk 0:00:20.1]} 23... Ne5 {[%clk 0:00:36.8]}
24. Bxe4 {[%clk 0:00:17.6]} 24... Qxe4 {[%clk 0:00:37.7]} 25. Bg5 {[%clk
0:00:12.7]} 25... Bc5 {[%clk 0:00:29.3]} 26. Nb3 {[%clk 0:00:10]} 26... Be7
{[%clk 0:00:18.3]} 27. Bxe7 {[%clk 0:00:08.3]} 27... Kxe7 {[%clk 0:00:19.2]} 28.
Qd6+ {[%clk 0:00:08.1]} 28... Kf7 {[%clk 0:00:18]} 29. Rf1+ {[%clk 0:00:07.9]}
29... Kg8 {[%clk 0:00:03.7]} 30. Qe6+ {[%clk 0:00:07.4]} 30... Kh7 {[%clk
0:00:04]} 31. Qh3+ {[%clk 0:00:06.8]} 31... Kg8 {[%clk 0:00:03.3]} 32. Qxc8+
{[%clk 0:00:06.7]} 32... Kh7 {[%clk 0:00:04.1]} 33. Qh3+ {[%clk 0:00:05.3]}
33... Kg8 {[%clk 0:00:04.3]} 34. Qe6+ {[%clk 0:00:05.5]} 34... Kh7 {[%clk
0:00:04.7]} 35. Kb1 {[%clk 0:00:04.4]} 35... g5 {[%clk 0:00:04]} 36. Qh3+ {[%clk
0:00:04.5]} 36... Kg8 {[%clk 0:00:04.1]} 37. Rd1 {[%clk 0:00:04.8]} 37... Kf7
{[%clk 0:00:03.6]} 38. Qh5+ {[%clk 0:00:04.7]} 38... Qg6 {[%clk 0:00:02.8]} 39.
Qxg6+ {[%clk 0:00:04.7]} 39... Kxg6 {[%clk 0:00:02.8]} 40. Nc5 {[%clk 0:00:05]}
40... Kf5 {[%clk 0:00:03]} 41. Nd3 {[%clk 0:00:05.1]} 41... Nc4 {[%clk
0:00:03.2]} 42. b3 {[%clk 0:00:04.8]} 42... Ne3 {[%clk 0:00:03.3]} 43. Re1
{[%clk 0:00:05.2]} 43... Ng4 {[%clk 0:00:02.1]} 44. c4 {[%clk 0:00:04.5]} 44...
bxc4 {[%clk 0:00:02]} 45. bxc4 {[%clk 0:00:05.4]} 45... Nf6 {[%clk 0:00:02.5]}
46. c5 {[%clk 0:00:05.9]} 46... Nd5 {[%clk 0:00:03]} 47. c6 {[%clk 0:00:06.1]}
47... Nc7 {[%clk 0:00:03.2]} 48. Re7 {[%clk 0:00:05.8]} 48... Ne6 {[%clk
0:00:02.9]} 49. c7 {[%clk 0:00:05.5]} 49... Nxc7 {[%clk 0:00:02.6]} 50. Rxc7
{[%clk 0:00:06.4]} 50... g6 {[%clk 0:00:03.2]} 51. Rc6 {[%clk 0:00:06.4]} 51...
Ke4 {[%clk 0:00:04.1]} 52. Nf2+ {[%clk 0:00:06.2]} 52... Ke3 {[%clk 0:00:04.3]}
53. Rxg6 {[%clk 0:00:06.4]} 53... Kxf2 {[%clk 0:00:04.5]} 54. Rxg5 {[%clk
0:00:07]} 54... Ke3 {[%clk 0:00:05.4]} 55. Ra5 {[%clk 0:00:07.3]} 55... Kd4
{[%clk 0:00:06.3]} 56. Rxa6 {[%clk 0:00:08.2]} 56... Kc4 {[%clk 0:00:07.2]} 57.
Ra4+ {[%clk 0:00:08.4]} 57... Kb5 {[%clk 0:00:08.1]} 58. Rb4+ {[%clk 0:00:08.8]}
58... Ka5 {[%clk 0:00:09]} 59. Kb2 {[%clk 0:00:09.4]} 1-0

[Event "Early-Titled-Tuesday-Blitz-March-26-2024"]
[Site "Chess.com"]
[Date "2024.03.26"]
[Round "7"]
[White "Davidalhesa2007"]
[Black "PawnEatingZombie"]
[Result "1/2-1/2"]
[WhiteElo "1876"]
[BlackElo "2185"]
[TimeControl "180+1"]
[EndTime "9:16:12 PDT"]
[Termination "Game drawn by repetition"]

1. d4 {[%clk 0:02:59.3]} 1... d6 {[%clk 0:02:56.8]} 2. Nc3 {[%clk 0:02:58.1]}
2... Nf6 {[%clk 0:02:54.4]} 3. Bf4 {[%clk 0:02:58.1]} 3... Nbd7 {[%clk 0:02:53]}
4. e3 {[%clk 0:02:55.9]} 4... e5 {[%clk 0:02:52]} 5. dxe5 {[%clk 0:02:55.6]}
5... dxe5 {[%clk 0:02:51.6]} 6. Bg3 {[%clk 0:02:52.9]} 6... c6 {[%clk
0:02:46.1]} 7. Bc4 {[%clk 0:02:47.1]} 7... Be7 {[%clk 0:02:44.4]} 8. Qd2 {[%clk
0:02:43.6]} 8... O-O {[%clk 0:02:43.8]} 9. O-O-O {[%clk 0:02:42.7]} 9... b5
{[%clk 0:02:43.6]} 10. Bd3 {[%clk 0:02:42.1]} 10... a5 {[%clk 0:02:31.5]} 11.
Nf3 {[%clk 0:02:41.8]} 11... Qc7 {[%clk 0:02:25]} 12. Ne4 {[%clk 0:02:22.7]}
12... a4 {[%clk 0:02:08.3]} 13. Nxf6+ {[%clk 0:02:13.9]} 13... Bxf6 {[%clk
0:02:07.8]} 14. Bf5 {[%clk 0:02:08.2]} 14... Nc5 {[%clk 0:01:46.3]} 15. Bxc8
{[%clk 0:02:05.7]} 15... Raxc8 {[%clk 0:01:47]} 16. Qd6 {[%clk 0:01:46.3]} 16...
Qxd6 {[%clk 0:01:46.6]} 17. Rxd6 {[%clk 0:01:47.2]} 17... Ne4 {[%clk 0:01:46.9]}
18. Rd7 {[%clk 0:01:41.1]} 18... Nxg3 {[%clk 0:01:46.7]} 19. hxg3 {[%clk
0:01:42]} 19... Rfd8 {[%clk 0:01:24.9]} 20. Rhd1 {[%clk 0:01:40.8]} 20... Rxd7
{[%clk 0:01:25.5]} 21. Rxd7 {[%clk 0:01:41.6]} 21... Kf8 {[%clk 0:01:25.1]} 22.
Nd2 {[%clk 0:01:34.4]} 22... Ke8 {[%clk 0:01:22.2]} 23. Ra7 {[%clk 0:01:30.9]}
23... Be7 {[%clk 0:01:14.9]} 24. Ne4 {[%clk 0:01:29.2]} 24... f5 {[%clk
0:01:07.4]} 25. Nd2 {[%clk 0:01:09.1]} 25... Rd8 {[%clk 0:01:07]} 26. Nf3 {[%clk
0:01:01.8]} 26... Bf6 {[%clk 0:01:01.1]} 27. c3 {[%clk 0:00:45.5]} 27... e4
{[%clk 0:01:00.1]} 28. Nd4 {[%clk 0:00:39]} 28... Bxd4 {[%clk 0:00:57.4]} 29.
cxd4 {[%clk 0:00:39.9]} 29... Rd7 {[%clk 0:00:56.8]} 30. Ra8+ {[%clk 0:00:29.7]}
30... Ke7 {[%clk 0:00:55.7]} 31. Kc2 {[%clk 0:00:28.8]} 31... Kd6 {[%clk
0:00:55.2]} 32. Rh8 {[%clk 0:00:28]} 32... g6 {[%clk 0:00:54.3]} 33. f4 {[%clk
0:00:20.7]} 33... Kd5 {[%clk 0:00:48.7]} 34. a3 {[%clk 0:00:19.4]} 34... Kc4
{[%clk 0:00:43]} 35. Re8 {[%clk 0:00:18.5]} 35... h5 {[%clk 0:00:20.6]} 36. Re6
{[%clk 0:00:15.7]} 36... c5 {[%clk 0:00:18.9]} 37. dxc5 {[%clk 0:00:15]} 37...
Rd3 {[%clk 0:00:17.7]} 38. c6 {[%clk 0:00:14]} 38... Rd8 {[%clk 0:00:16.7]} 39.
Rxg6 {[%clk 0:00:13.5]} 39... Rc8 {[%clk 0:00:17]} 40. Rg5 {[%clk 0:00:13.1]}
40... Rxc6 {[%clk 0:00:16.1]} 41. Rxf5 {[%clk 0:00:13.6]} 41... b4 {[%clk
0:00:15.4]} 42. Re5 {[%clk 0:00:07.7]} 42... b3+ {[%clk 0:00:13.7]} 43. Kd2
{[%clk 0:00:07.6]} 43... Rd6+ {[%clk 0:00:14]} 44. Ke2 {[%clk 0:00:07.3]} 44...
Rc6 {[%clk 0:00:02.2]} 45. Rxe4+ {[%clk 0:00:07]} 45... Kd5 {[%clk 0:00:02.8]}
46. Rd4+ {[%clk 0:00:06.1]} 46... Ke6 {[%clk 0:00:02.6]} 47. Rd2 {[%clk
0:00:02.3]} 47... Rc1 {[%clk 0:00:02.5]} 48. Kf3 {[%clk 0:00:02.2]} 48... Rf1+
{[%clk 0:00:02.4]} 49. Ke4 {[%clk 0:00:02.3]} 49... Rc1 {[%clk 0:00:02.6]} 50.
f5+ {[%clk 0:00:02.5]} 50... Kf6 {[%clk 0:00:02.4]} 51. Rd6+ {[%clk 0:00:02]}
51... Ke7 {[%clk 0:00:02.9]} 52. Rd2 {[%clk 0:00:02.2]} 52... Rc2 {[%clk
0:00:03.1]} 53. Kd3 {[%clk 0:00:01.5]} 53... Rc1 {[%clk 0:00:02.9]} 54. Ke2
{[%clk 0:00:01.1]} 54... Rc5 {[%clk 0:00:02.2]} 55. e4 {[%clk 0:00:01.6]} 55...
Kf6 {[%clk 0:00:02]} 56. Kf3 {[%clk 0:00:02.1]} 56... Ke5 {[%clk 0:00:02.3]} 57.
Ke3 {[%clk 0:00:02.4]} 57... Rc2 {[%clk 0:00:02.1]} 58. Re2 {[%clk 0:00:02.7]}
58... Rc1 {[%clk 0:00:01.8]} 59. Rd2 {[%clk 0:00:02.9]} 59... Rc2 {[%clk
0:00:02.2]} 60. Ke2 {[%clk 0:00:03.6]} 60... Rc1 {[%clk 0:00:02.5]} 61. Ke3
{[%clk 0:00:03.9]} 61... Rc2 {[%clk 0:00:02.8]} 1/2-1/2